bitfinex/quotes_BTCUSD_20251219
["timestamp","ask_amount","ask_price","bid_price","bid_amount"]
[1766171662511,0.00010807,87336.0,87332.0,0.00576]
[1766171663167,0.00576,87345.0,87333.0,0.56667]
[1766171663390,0.00576,87345.0,87335.0,0.56667]
[1766171663809,0.00576,87345.0,87332.0,0.00576]
[1766171664977,0.00099999,87340.0,87332.0,0.00576]
[1766171665155,0.07444288,87358.0,87340.0,0.09829]
[1766171665359,0.00576,87358.0,87341.0,0.57243]
[1766171665949,0.50357,87359.0,87341.0,0.57243]
[1766171666148,0.01144741,87356.0,87341.0,0.57243]
[1766171666484,0.06868575,87355.0,87341.0,0.57243]
[1766171666854,0.0114478,87353.0,87341.0,0.57243]
[1766171667078,0.01144714,87358.0,87341.0,0.57243]
[1766171667282,0.55514008,87359.0,87341.0,0.57243]
[1766171667283,0.56658709,87359.0,87341.0,0.57243]
[1766171667506,0.01720714,87358.0,87341.0,0.57243]
[1766171667703,0.01144727,87357.0,87341.0,0.57243]
[1766171667907,0.00576,87358.0,87341.0,0.57243]
[1766171668736,0.00576,87358.0,87341.0,0.67072]
[1766171668907,0.01720714,87358.0,87341.0,0.67072]
[1766171669106,0.01144727,87357.0,87341.0,0.67072]
[1766171669656,0.00576,87358.0,87343.0,0.56667]
[1766171669859,9.482e-05,87359.0,87341.0,0.00576]
[1766171669860,9.482e-05,87359.0,87347.0,0.56667]
[1766171670036,9.482e-05,87359.0,87351.0,0.56667]
[1766171671268,4.82e-06,87359.0,87353.0,0.58041295]
[1766171671518,4.82e-06,87359.0,87355.0,0.56667]
[1766171671742,4.82e-06,87359.0,87357.0,0.56667]
[1766171672696,4.82e-06,87359.0,87358.0,0.09244]
[1766171672897,4.82e-06,87359.0,87358.0,0.65911]
[1766171676453,4.82e-06,87359.0,87354.0,0.00576]
[1766171676651,4.82e-06,87359.0,87354.0,0.01457942]
[1766171676877,4.82e-06,87359.0,87355.0,0.53887]
[1766171677042,4.82e-06,87359.0,87358.0,0.00122274]
[1766171680367,4.82e-06,87359.0,87358.0,0.63253274]
[1766171683049,4.82e-06,87359.0,87358.0,0.68976848]
[1766171686214,4.82e-06,87359.0,87358.0,0.63253274]
[1766171686416,4.82e-06,87359.0,87358.0,0.68976848]
[1766171687077,4.82e-06,87359.0,87358.0,0.00012374]
[1766171687301,1.06099482,87359.0,87358.0,3.74e-06]
[1766171690541,0.48942482,87359.0,87358.0,3.74e-06]
[1766171690762,4.82e-06,87359.0,87358.0,3.74e-06]
[1766171694169,4.82e-06,87359.0,87358.0,0.09256374]
[1766171694319,4.82e-06,87359.0,87358.0,0.06299948]
[1766171695433,0.50086452,87378.0,87358.0,0.01721088]
[1766171695595,0.01720439,87379.0,87367.0,0.55261295]
[1766171695824,0.48942,87391.0,87375.0,0.01144492]
[1766171696028,0.48942,87388.0,87381.0,0.01374295]
[1766171696252,0.48942,87388.0,87373.0,0.53887]
[1766171696253,0.48942,87388.0,87373.0,0.54463]
[1766171696726,0.48942,87387.0,87373.0,0.54463]
[1766171696943,1.06099,87387.0,87373.0,0.54463]
[1766171697724,0.48942,87387.0,87373.0,0.00576]
[1766171697926,0.48942,87387.0,87376.0,0.53887]
[1766171698105,0.48942,87387.0,87381.0,0.01374295]
[1766171698995,0.00010812,87391.0,87381.0,0.01374295]
[1766171699423,0.00010812,87391.0,87381.0,0.07096332]
[1766171699744,0.00010812,87391.0,87381.0,0.01374295]
[1766171700305,0.48942,87409.0,87392.0,0.53887]
[1766171700536,0.48942,87409.0,87400.0,0.05720823]
[1766171700707,0.48942,87409.0,87398.0,0.01374295]
[1766171700944,0.48942,87409.0,87398.0,0.02518485]
[1766171701160,0.48942,87409.0,87398.0,0.01374295]
[1766171701576,0.48942,87408.0,87388.0,0.01]
[1766171701775,1.06099,87405.0,87389.0,0.00366]
[1766171701983,1.06099,87405.0,87389.0,0.54253]
[1766171702460,1.06099,87405.0,87390.0,0.06865764]
[1766171702641,1.06099,87405.0,87390.0,0.01144295]
[1766171702847,1.06099,87405.0,87389.0,0.59974524]
[1766171703062,1.06099,87405.0,87391.0,0.01144282]
[1766171703499,1.06099,87405.0,87390.0,0.0686575]
[1766171703688,1.06099,87405.0,87390.0,0.01144295]
[1766171704022,1.06099,87405.0,87389.0,0.61118844]
[1766171704227,1.06099,87405.0,87391.0,0.01144282]
[1766171704429,1.06099,87405.0,87392.0,0.01144269]
[1766171704897,1.06099,87405.0,87392.0,0.06865611]
[1766171705098,1.06099,87405.0,87393.0,0.01144256]
[1766171705345,1.06099,87405.0,87393.0,0.0686548]
[1766171705822,0.0686428,87409.0,87392.0,0.63735]
[1766171705995,1.02786,87408.0,87391.0,0.01144282]
[1766171706177,1.02786,87408.0,87390.0,0.01144295]
[1766171706382,0.11546078,87409.0,87389.0,0.07231848]
[1766171706583,0.07440209,87410.0,87389.0,0.0723182]
[1766171706784,1.02786,87408.0,87389.0,0.01510308]
[1766171706985,0.01144046,87409.0,87389.0,0.01510308]
[1766171707188,0.0114406,87408.0,87389.0,0.00366]
[1766171707388,0.01144046,87409.0,87389.0,0.01510308]
[1766171707712,0.48768,87398.0,87379.0,0.5449]
[1766171707911,0.48768,87393.0,87383.0,0.01]
[1766171708298,0.48768,87393.0,87383.0,0.02144387]
[1766171708729,0.54018,87399.0,87393.0,0.01144256]
[1766171708929,0.102372,87459.0,87413.0,0.09245]
[1766171708930,0.01143785,87429.0,87413.0,0.09245]
[1766171709257,0.48797175,87422.0,87413.0,0.01374295]
[1766171710020,0.48807985,87422.0,87413.0,0.01374295]
[1766171710420,0.48807985,87422.0,87413.0,0.00874295]
[1766171710626,0.48807985,87422.0,87413.0,0.00632885]
[1766171710820,0.48807985,87422.0,87412.0,0.00874295]
[1766171712182,0.00039985,87422.0,87412.0,0.55364295]
[1766171717602,0.00039985,87422.0,87412.0,0.62228279]
[1766171717785,0.00039985,87422.0,87412.0,0.56508302]
[1766171718021,0.00039985,87422.0,87413.0,0.5449]
[1766171718617,0.06863338,87421.0,87399.0,0.01144177]
[1766171718786,0.09841412,87420.0,87401.0,0.01]
[1766171719138,0.48153,87416.0,87401.0,0.01]
[1766171719287,0.01143902,87420.0,87402.0,0.00576]
[1766171719483,0.48153,87418.0,87402.0,0.00576]
[1766171720110,0.48153,87418.0,87403.0,0.57241]
[1766171722037,0.48153,87417.0,87402.0,0.57817]
[1766171723226,0.0002,87447.0,87418.0,0.57241]
[1766171723450,0.0002,87447.0,87438.0,0.57241]
[1766171723451,0.00056025,87447.0,87438.0,0.57241]
[1766171723624,0.00056025,87447.0,87439.0,0.00576]
[1766171724205,0.00056025,87447.0,87439.0,0.01950295]
[1766171724454,0.01199574,87447.0,87439.0,0.01950295]
[1766171724655,0.56209,87446.0,87439.0,0.01950295]
[1766171725355,0.56209,87446.0,87439.0,0.00576]
[1766171725966,0.56209,87446.0,87429.0,0.01]
[1766171725967,0.01143602,87443.0,87429.0,0.01]
[1766171726245,0.49296209,87473.0,87449.0,0.4757]
[1766171726451,0.49296209,87473.0,87443.0,0.001099]
[1766171726452,0.01143288,87467.0,87456.0,0.01374295]
[1766171726623,0.49296262,87469.0,87456.0,0.01374295]
[1766171726824,0.48153,87467.0,87456.0,0.01374295]
[1766171727029,0.00576,87466.0,87456.0,0.01374295]
[1766171727449,0.0114317,87476.0,87456.0,0.01374295]
[1766171727450,0.004661,87465.0,87462.0,0.57241]
[1766171727606,0.00576,87468.0,87462.0,0.58384353]
[1766171727793,0.00576,87468.0,87463.0,0.06860033]
[1766171727994,0.55011436,87484.0,87462.0,0.58384353]
[1766171727995,0.48153,87484.0,87467.0,0.01143288]
[1766171728242,0.0458,87491.0,87475.0,0.01143183]
[1766171728443,0.00576,87490.0,87475.0,0.00010805]
[1766171730149,0.00576,87489.0,87475.0,0.00010805]
[1766171730297,0.00576,87489.0,87476.0,0.06859012]
[1766171730505,0.00169089,87476.0,87475.0,0.01153988]
[1766171730713,0.00169089,87476.0,87475.0,0.00010805]
[1766171731114,0.00169089,87476.0,87475.0,0.57251805]
[1766171731746,0.00169089,87476.0,87467.0,0.01143288]
[1766171731747,0.00169089,87476.0,87464.0,0.01]
[1766171731955,0.00169089,87476.0,87440.0,0.91066391]
[1766171731956,0.48153,87475.0,87457.0,0.01]
[1766171732159,0.48153,87475.0,87462.0,0.06860096]
[1766171732436,0.00576,87474.0,87464.0,0.02143327]
[1766171732682,0.00576,87474.0,87465.0,0.01143314]
[1766171732895,0.00576,87474.0,87466.0,0.01815002]
[1766171734053,0.00576,87474.0,87455.0,0.01374295]
[1766171734054,0.01719196,87474.0,87455.0,0.01374295]
[1766171734281,0.01719196,87474.0,87453.0,0.01143471]
[1766171734282,0.48336,87470.0,87453.0,0.01]
[1766171734544,0.54656,87468.0,87453.0,0.01]
[1766171734764,0.48912,87467.0,87453.0,0.01]
[1766171735000,0.00576,87467.0,87456.0,0.01143432]
[1766171735222,0.00576,87467.0,87457.0,0.01143419]
[1766171735454,0.00576,87467.0,87456.0,0.56759]
[1766171736142,0.00576,87467.0,87454.0,0.45051]
[1766171736831,0.00576,87467.0,87454.0,0.46194458]
[1766171737279,0.00134661,87465.0,87454.0,0.46194458]
[1766171737505,0.00576,87467.0,87454.0,0.46194458]
[1766171737728,0.00103356,87455.0,87454.0,0.46194458]
[1766171737974,5.6e-07,87455.0,87454.0,0.45051]
[1766171738181,5.6e-07,87455.0,87447.0,0.01]
[1766171738329,0.00576,87460.0,87447.0,0.02143549]
[1766171738530,0.00576,87460.0,87447.0,0.01]
[1766171738799,0.00576,87460.0,87444.0,0.45627]
[1766171738800,0.005694,87460.0,87454.0,0.01143458]
[1766171738976,4e-06,87460.0,87457.0,0.01143419]
[1766171739137,4e-06,87460.0,87453.0,0.56759]
[1766171739319,4e-06,87460.0,87456.0,0.01143432]
[1766171739532,4e-06,87460.0,87452.0,0.01143484]
[1766171739533,0.00576,87462.0,87446.0,0.56759]
[1766171739732,0.001033,87456.0,87446.0,0.57759]
[1766171739949,3e-06,87456.0,87455.0,1.07527226]
[1766171740182,3e-06,87462.0,87456.0,0.01143432]
[1766171740418,3e-06,87462.0,87455.0,1.08670671]
[1766171740620,3e-06,87462.0,87452.0,0.01]
[1766171740943,0.00010795,87476.0,87464.0,0.56759]
[1766171741126,0.00576,87475.0,87466.0,0.56759]
[1766171741348,0.00576,87475.0,87465.0,0.45051]
[1766171741748,0.00576,87475.0,87465.0,0.450444]
[1766171742506,0.00576,87475.0,87456.0,0.05717112]
[1766171742507,0.06859291,87473.0,87452.0,0.01]
[1766171742730,0.00576,87475.0,87452.0,0.01]
[1766171742731,0.01143196,87474.0,87453.0,0.01143471]
[1766171742937,0.01143275,87468.0,87448.0,0.01]
[1766171743142,0.00576,87475.0,87448.0,0.01]
[1766171743143,0.48336,87466.0,87448.0,0.01576]
[1766171743349,0.55232,87467.0,87448.0,0.01576]
[1766171743350,0.00576,87467.0,87453.0,0.56759]
[1766171743548,0.00576,87471.0,87467.0,0.56759]
[1766171744144,0.00576,87471.0,87461.0,0.56759]
[1766171744351,0.00576,87471.0,87455.0,1.00659]
[1766171744758,0.00576,87471.0,87456.0,0.56759]
[1766171744948,0.00576,87471.0,87456.0,0.57902432]
[1766171745077,0.00576,87471.0,87458.0,0.56759]
[1766171745287,0.00576,87471.0,87461.0,0.56759]
[1766171746036,0.00010795,87476.0,87398.0,0.1433199]
[1766171746037,0.00010795,87476.0,87453.0,0.02719471]
[1766171746265,0.00576,87472.0,87458.0,0.025177]
[1766171746476,0.00576,87472.0,87466.0,0.94792]
[1766171746622,0.00010795,87476.0,87466.0,0.94792]
[1766171746824,0.00576,87472.0,87466.0,0.94792]
[1766171747049,0.00576,87473.0,87466.0,0.94792]
[1766171747226,0.00576,87473.0,87466.0,0.38033]
[1766171747435,0.00010795,87476.0,87466.0,0.94792]
[1766171747650,0.00576,87475.0,87466.0,0.94792]
[1766171747874,0.001099,87466.0,87457.0,0.01576]
[1766171748153,0.00010795,87476.0,87457.0,0.01576]
[1766171748154,0.00010795,87476.0,87465.0,0.56759]
[1766171748513,0.00010795,87476.0,87471.0,0.01374295]
[1766171748650,0.00010795,87476.0,87465.0,0.56759]
[1766171749259,0.00034487,87466.0,87465.0,0.56759]
[1766171749974,0.00010795,87476.0,87466.0,0.00033913]
[1766171750186,0.00010795,87476.0,87467.0,0.606393]
[1766171750405,0.00010795,87476.0,87467.0,0.038803]
[1766171751176,0.00010795,87476.0,87461.0,0.01143366]
[1766171751177,0.48346795,87476.0,87459.0,0.02143392]
[1766171751410,0.48346795,87476.0,87461.0,0.01374295]
[1766171751589,0.48346795,87476.0,87463.0,0.24742]
[1766171751590,0.00010795,87476.0,87463.0,0.24742]
[1766171751810,0.00010795,87476.0,87464.0,0.56759]
[1766171752667,0.54656,87470.0,87450.0,0.06860998]
[1766171752971,0.48336,87468.0,87452.0,0.01143484]
[1766171753127,0.48336,87468.0,87453.0,0.01143471]
[1766171753310,0.48336,87468.0,87452.0,0.57902484]
[1766171753513,0.48336,87468.0,87452.0,0.56759]
[1766171753920,0.48336,87468.0,87453.0,0.19639]
[1766171754134,0.48336,87468.0,87455.0,0.01374295]
[1766171754340,0.00576,87469.0,87456.0,0.56759]
[1766171754946,0.00576,87469.0,87455.0,0.01374295]
[1766171754947,1.02992,87466.0,87455.0,0.01374295]
[1766171755164,0.01719262,87469.0,87455.0,0.01374295]
[1766171755366,0.48336,87467.0,87455.0,0.01374295]
[1766171759821,0.01143314,87465.0,87449.0,0.01]
[1766171760018,0.48336,87466.0,87449.0,0.01]
[1766171760462,0.54656,87467.0,87439.0,0.01143654]
[1766171760649,0.55232,87469.0,87450.0,0.56759]
[1766171760820,0.0685986,87466.0,87450.0,0.56759]
[1766171761021,0.48336,87464.0,87448.0,0.03795536]
[1766171761231,0.00576,87463.0,87449.0,0.56759]
[1766171761446,0.54656,87461.0,87448.0,0.01143536]
[1766171761629,0.54656,87461.0,87446.0,0.07437253]
[1766171761630,0.54656,87459.0,87444.0,0.01]
[1766171761840,0.48336,87458.0,87445.0,0.02639122]
[1766171762037,0.05717467,87452.0,87438.0,0.00576]
[1766171762213,0.22868858,87456.0,87433.0,0.56759]
[1766171762214,0.55799536,87448.0,87434.0,0.01]
[1766171762416,0.48912,87447.0,87433.0,0.00576]
[1766171762806,0.48336,87445.0,87429.0,0.00576]
[1766171763049,0.48336,87445.0,87429.0,0.01143785]
[1766171763263,0.48336,87445.0,87430.0,0.05718799]
[1766171763463,0.48336,87445.0,87430.0,0.6247783]
[1766171763781,0.48336,87445.0,87432.0,0.01143745]
[1766171764420,0.48336,87445.0,87432.0,0.58643]
[1766171765377,0.48336,87445.0,87433.0,0.01143732]
[1766171765575,0.48336,87445.0,87432.0,0.65505466]
[1766171765776,0.48336,87445.0,87434.0,0.01143719]
[1766171766033,0.00576,87447.0,87434.0,0.59786719]
[1766171766390,0.00576,87447.0,87435.0,0.01143706]
[1766171766598,0.00576,87447.0,87434.0,0.58643]
[1766171770299,0.00576,87447.0,87434.0,0.59786719]
[1766171770492,0.00576,87447.0,87434.0,0.58643]
[1766171774461,0.18538,87452.0,87429.0,0.00036025]
[1766171774462,0.18538,87452.0,87441.0,0.01143628]
[1766171774637,0.18538,87460.0,87448.0,0.58643]
[1766171774849,0.00576,87459.0,87449.0,0.64360567]
[1766171775054,0.00576,87459.0,87449.0,0.58643]
[1766171777548,0.00576,87459.0,87450.0,0.58643]
[1766171778567,0.004666,87459.0,87453.0,0.01143471]
[1766171778719,0.004666,87459.0,87454.0,0.0571724]
[1766171778923,0.004666,87459.0,87451.0,0.01143497]
[1766171779129,0.004666,87459.0,87450.0,0.5978651]
[1766171779358,0.004666,87459.0,87452.0,0.01143484]
[1766171779759,0.004666,87459.0,87450.0,0.58643]
[1766171779957,0.004666,87459.0,87447.0,0.01]
[1766171780224,0.004666,87459.0,87447.0,0.57675549]
[1766171780420,0.004666,87459.0,87449.0,0.55532]
[1766171782254,0.68055,87458.0,87444.0,0.01]
[1766171782409,0.001099,87449.0,87444.0,0.01576]
[1766171783027,0.11705,87457.0,87444.0,0.01576]
[1766171783390,0.11705,87457.0,87444.0,0.00576]
[1766171783876,0.01609992,87459.0,87444.0,0.00576]
[1766171784094,0.13314992,87459.0,87445.0,0.01]
[1766171784300,0.11705,87458.0,87445.0,0.01]
[1766171784510,0.11705,87458.0,87444.0,0.56108]
[1766171784511,0.12848419,87457.0,87444.0,0.55532]
[1766171784746,0.11705,87457.0,87444.0,0.55532]
[1766171784960,0.5635,87455.0,87445.0,0.07092114]
[1766171785182,0.68055,87454.0,87445.0,0.06861404]
[1766171785369,0.68055,87454.0,87445.0,0.01143575]
[1766171785370,0.11705,87454.0,87445.0,0.01143575]
[1766171785827,0.12281,87454.0,87447.0,0.05717737]
[1766171786048,0.12281,87454.0,87445.0,0.01143575]
[1766171786231,0.12281,87454.0,87444.0,0.02143589]
[1766171786490,0.12281,87454.0,87444.0,0.01]
[1766171786491,0.11705,87452.0,87444.0,0.01]
[1766171786731,0.00136691,87450.0,87444.0,0.01]
[1766171786921,0.00136691,87450.0,87445.0,0.03245467]
[1766171787372,0.00136691,87450.0,87444.0,0.01]
[1766171787596,0.5635,87449.0,87433.0,0.01143732]
[1766171787819,0.001099,87444.0,87435.0,0.00576]
[1766171788078,0.001099,87444.0,87431.0,0.00576]
[1766171788079,0.5635,87444.0,87431.0,0.00576]
[1766171788266,0.5635,87444.0,87433.0,0.0686239]
[1766171788468,0.00576,87448.0,87435.0,0.55532]
[1766171788899,0.00576,87448.0,87440.0,0.55532]
[1766171789107,0.00576,87448.0,87443.0,0.05717997]
[1766171789332,0.001099,87443.0,87435.0,0.55532]
[1766171789501,0.001099,87443.0,87435.0,0.56675706]
[1766171789704,0.00576,87448.0,87435.0,0.56675706]
[1766171789905,0.00576,87448.0,87435.0,0.55532]
[1766171790092,0.00576,87448.0,87436.0,0.01143693]
[1766171790291,0.00576,87448.0,87438.0,0.01143667]
[1766171790493,0.00576,87448.0,87441.0,0.01143628]
[1766171790881,0.00576,87448.0,87441.0,0.06861715]
[1766171791076,0.00576,87448.0,87442.0,0.06861681]
[1766171791528,0.00576,87448.0,87441.0,0.06861715]
[1766171791830,0.00576,87448.0,87439.0,0.0686192]
[1766171792036,0.00576,87448.0,87438.0,0.05718221]
[1766171792037,0.00576,87448.0,87438.0,0.06861888]
[1766171792239,0.00576,87448.0,87439.0,0.01143654]
[1766171792413,0.0114334,87463.0,87442.0,0.55532]
[1766171792624,0.00576,87462.0,87444.0,0.55532]
[1766171793021,0.07436178,87462.0,87444.0,0.55532]
[1766171793198,0.01143366,87461.0,87444.0,0.55532]
[1766171793399,0.01143379,87460.0,87444.0,0.55532]
[1766171793724,0.11705,87459.0,87442.0,0.55532]
[1766171793883,0.12848392,87459.0,87442.0,0.55532]
[1766171794084,0.11705,87459.0,87442.0,0.55532]
[1766171794769,0.11705,87459.0,87444.0,0.57696]
[1766171795352,0.12848392,87459.0,87444.0,0.57696]
[1766171795725,0.01143405,87458.0,87444.0,0.57696]
[1766171796032,0.01143419,87457.0,87444.0,0.57696]
[1766171796238,0.14181432,87456.0,87444.0,0.57696]
[1766171796461,0.13038,87456.0,87444.0,0.57696]
[1766171796817,0.14181432,87456.0,87444.0,0.57696]
[1766171797020,0.14181432,87456.0,87438.0,0.00576]
[1766171797240,0.12462,87450.0,87438.0,0.00576]
[1766171797439,0.12462,87448.0,87438.0,0.00576]
[1766171798329,0.56597,87450.0,87442.0,0.01143615]
[1766171798537,0.00576,87453.0,87442.0,0.06861641]
[1766171798928,0.00576,87453.0,87443.0,0.01143602]
[1766171799087,0.00576,87453.0,87440.0,0.01143641]
[1766171799629,0.00576,87453.0,87440.0,0.57696]
[1766171799809,0.00576,87453.0,87440.0,0.70073641]
[1766171799991,0.00576,87453.0,87440.0,0.6893]
[1766171800815,0.00576,87453.0,87438.0,0.00576]
[1766171801020,0.12462,87452.0,87439.0,0.01430064]
[1766171803675,0.13038,87452.0,87439.0,0.01430064]
[1766171803885,0.13038,87452.0,87439.0,0.02573718]
[1766171804052,0.12462,87452.0,87439.0,0.02573718]
[1766171804249,0.00576,87451.0,87439.0,0.01430064]
[1766171804455,0.00576,87451.0,87433.0,0.12377732]
[1766171804456,0.001099,87439.0,87433.0,0.12377732]
[1766171804709,0.00017091,87439.0,87436.0,0.00576]
[1766171805029,0.12462,87446.0,87436.0,0.00576]
[1766171805782,0.00576,87451.0,87437.0,0.57696]
[1766171805988,0.12462,87450.0,87437.0,0.57696]
[1766171806191,0.12462,87449.0,87437.0,0.57696]
[1766171807623,0.12462,87448.0,87436.0,0.00576]
[1766171807826,0.12462,87448.0,87436.0,0.58272]
[1766171808841,0.000171,87436.0,87423.0,0.08199334]
[1766171809061,0.56597,87433.0,87422.0,0.01]
[1766171809294,0.13038,87435.0,87422.0,0.01]
[1766171809505,0.69635,87435.0,87422.0,0.01]
[1766171809715,0.69635,87435.0,87429.0,0.00018925]
[1766171809925,0.12462,87434.0,87429.0,0.00018925]
[1766171810968,0.12462,87433.0,87429.0,0.00018925]
[1766171812748,0.123521,87433.0,87429.0,0.00018925]
[1766171814104,0.00576,87435.0,87429.0,0.00018925]
[1766171814429,0.57173,87435.0,87429.0,0.00018925]
[1766171815546,0.00576,87435.0,87429.0,0.00018925]
[1766171818913,0.57597,87458.0,87429.0,0.00018925]
[1766171819129,0.12462,87453.0,87438.0,0.57696]
[1766171819360,0.12462,87451.0,87438.0,0.57696]
[1766171819581,0.12462,87450.0,87438.0,0.57696]
[1766171819830,0.56597,87450.0,87433.0,0.57696]
[1766171819973,0.12462,87448.0,87433.0,0.57696]
[1766171820401,0.12462,87448.0,87433.0,0.6904]
[1766171820910,0.06861242,87448.0,87433.0,0.6904]
[1766171821110,0.06861242,87448.0,87426.0,0.07438934]
[1766171821111,0.1145621,87431.0,87421.0,0.01]
[1766171821312,0.1145621,87431.0,87416.0,0.01143955]
[1766171821313,0.57173,87430.0,87416.0,0.06163098]
[1766171821491,0.57173,87430.0,87418.0,0.01143929]
[1766171821691,0.57173,87430.0,87417.0,0.01]
[1766171821900,0.57173,87430.0,87418.0,0.06863556]
[1766171822108,0.57173,87430.0,87419.0,0.06863492]
[1766171822310,0.57173,87430.0,87420.0,0.01143902]
[1766171822529,0.57173,87430.0,87421.0,0.01143889]
[1766171822827,0.57173,87430.0,87417.0,0.06719701]
[1766171823030,0.11456216,87429.0,87417.0,0.02143942]
[1766171823363,0.11456216,87429.0,87417.0,0.12783]
[1766171823675,0.11456216,87429.0,87329.0,0.0004]
[1766171823676,0.125719,87417.0,87406.0,0.01]
[1766171823827,0.13038,87417.0,87406.0,0.01]
[1766171824026,0.13038,87417.0,87406.0,0.02144086]
[1766171824210,0.00576,87417.0,87408.0,0.66367]
[1766171824435,0.00576,87417.0,87408.0,0.6751106]
[1766171824637,0.00576,87417.0,87406.0,0.01]
[1766171825180,0.00576,87417.0,87406.0,0.55098]
[1766171825397,0.00576,87417.0,87407.0,0.66367]
[1766171825723,0.11456216,87416.0,87407.0,0.66367]
[1766171826995,0.11456216,87416.0,87407.0,0.11269]
[1766171827224,0.11456216,87416.0,87409.0,0.11269]
[1766171828003,2.16e-06,87417.0,87414.0,0.01143981]
[1766171828207,0.00576,87422.0,87415.0,0.65885]
[1766171828384,0.00576,87422.0,87415.0,0.01143968]
[1766171828584,0.00576,87422.0,87416.0,0.01143955]
[1766171828780,0.00576,87422.0,87417.0,0.06863636]
[1766171829025,0.00576,87422.0,87417.0,0.01143942]
[1766171829185,0.00576,87422.0,87415.0,0.01143968]
[1766171829388,0.00576,87422.0,87416.0,0.02977537]
[1766171829771,0.0003598,87431.0,87418.0,0.10787]
[1766171829978,0.00576,87430.0,87422.0,0.65885]
[1766171830192,0.0003598,87431.0,87422.0,0.65885]
[1766171830193,0.00576,87429.0,87422.0,0.65885]
[1766171830715,0.00576,87429.0,87420.0,0.78666304]
[1766171830716,0.57359,87444.0,87424.0,0.55098]
[1766171830877,0.11904,87440.0,87426.0,0.01143824]
[1766171831099,0.11904,87435.0,87422.0,0.01143876]
[1766171831295,0.69263,87435.0,87421.0,0.00576]
[1766171831496,0.11904,87434.0,87421.0,0.00576]
[1766171831693,0.11904,87433.0,87421.0,0.00576]
[1766171832325,0.11904,87433.0,87421.0,0.01719889]
[1766171832542,0.11904,87433.0,87421.0,0.00576]
[1766171833063,0.00576,87432.0,87420.0,0.55098]
[1766171833201,0.00576,87432.0,87410.0,0.78666304]
[1766171833202,0.11904,87419.0,87404.0,0.01144112]
[1766171833401,0.00576,87418.0,87405.0,0.02180079]
[1766171833685,0.00576,87418.0,87407.0,0.01]
[1766171834860,0.00576,87418.0,87406.0,0.01]
[1766171835654,0.00576,87418.0,87406.0,0.56098]
[1766171839100,0.00576,87418.0,87414.0,0.01374295]
[1766171839503,0.00576,87418.0,87414.0,0.00374295]
[1766171839672,0.001099,87414.0,87405.0,0.0003598]
[1766171840074,0.12855,87418.0,87405.0,0.0003598]
[1766171840235,0.01144033,87410.0,87399.0,0.06163098]
[1766171840438,0.12279,87408.0,87399.0,0.0001081]
[1766171843300,0.00576,87409.0,87329.0,0.05804717]
[1766171843301,0.12279,87405.0,87390.0,0.01]
[1766171843505,0.12279,87404.0,87391.0,0.00156]
[1766171843731,0.12279,87404.0,87389.0,0.57941]
[1766171843732,0.12279,87403.0,87389.0,0.57941]
[1766171843935,0.56353,87404.0,87387.0,0.10247]
[1766171843936,0.12279,87399.0,87387.0,0.10247]
[1766171844057,0.12855,87399.0,87387.0,0.10247]
[1766171844262,0.12855,87399.0,87387.0,0.08891334]
[1766171844463,0.12855,87399.0,87388.0,0.01144321]
[1766171844704,0.12855,87399.0,87395.0,0.00374295]
[1766171844906,0.12855,87399.0,87387.0,0.06397104]
[1766171845105,0.12855,87399.0,87395.0,0.0074859]
[1766171845259,0.12855,87399.0,87387.0,0.02635694]
[1766171845465,0.12855,87399.0,87386.0,0.01210348]
[1766171845697,0.12855,87399.0,87386.0,0.58371]
[1766171845901,0.12855,87399.0,87386.0,0.59515348]
[1766171846941,0.12855,87399.0,87386.0,0.57871]
[1766171847088,0.12855,87399.0,87387.0,0.00644334]
[1766171847292,0.12855,87399.0,87387.0,0.03721673]
[1766171847526,0.12855,87399.0,87387.0,0.01711673]
[1766171847834,0.12855,87399.0,87386.0,0.58015348]
[1766171848064,0.00576,87399.0,87396.0,0.0123859]
[1766171848293,0.05723955,87416.0,87396.0,0.0123859]
[1766171848294,0.12279,87417.0,87404.0,0.0572056]
[1766171848491,0.00035987,87417.0,87410.0,0.01374295]
[1766171848642,0.00576,87416.0,87410.0,0.01374295]
[1766171849160,0.00576,87416.0,87404.0,0.01144112]
[1766171849505,0.00576,87416.0,87404.0,0.06864659]
[1766171849708,0.00576,87416.0,87404.0,0.65235659]
[1766171849914,0.00576,87416.0,87404.0,0.59515112]
[1766171850154,0.00576,87416.0,87404.0,0.58371]
[1766171850362,0.00576,87416.0,87404.0,0.59515112]
[1766171850565,0.00576,87416.0,87404.0,0.58371]
[1766171850771,0.00576,87416.0,87404.0,0.582611]
[1766171851561,0.00576,87416.0,87405.0,0.01144099]
[1766171851738,0.00576,87416.0,87407.0,0.01144073]
[1766171852515,0.00035987,87417.0,87416.0,0.001099]
[1766171852730,0.00576,87419.0,87417.0,0.05719655]
[1766171852940,0.00586787,87419.0,87417.0,0.05719655]
[1766171853151,0.00586787,87419.0,87414.0,0.06863878]
[1766171853387,0.00010787,87419.0,87416.0,0.01143955]
[1766171853604,0.12279,87429.0,87414.0,0.01143981]
[1766171853789,0.00576,87428.0,87416.0,0.01143955]
[1766171854005,0.00576,87428.0,87412.0,0.05720019]
[1766171854207,0.12095,87428.0,87412.0,0.06864026]
[1766171854416,0.12095,87428.0,87412.0,0.01144007]
[1766171854855,0.12095,87428.0,87412.0,0.06863989]
[1766171855157,0.12095,87428.0,87411.0,0.06864003]
[1766171855365,0.12095,87428.0,87413.0,0.01143994]
[1766171856207,0.12095,87428.0,87413.0,0.55859]
[1766171856423,0.12095,87428.0,87414.0,0.01143981]
[1766171856737,0.12095,87428.0,87415.0,0.55859]
[1766171858347,0.01719798,87428.0,87402.0,0.26319089]
[1766171858596,0.001099,87415.0,87409.0,0.55859]
[1766171858790,0.001099,87415.0,87409.0,0.57003046]
[1766171859113,0.00576,87420.0,87411.0,0.0114402]
[1766171859639,0.11519,87419.0,87410.0,0.01144033]
[1766171859845,0.11519,87419.0,87410.0,0.06864174]
[1766171860050,0.11519,87419.0,87411.0,0.0114402]
[1766171860747,0.00576,87420.0,87410.0,0.64097493]
[1766171860907,0.00576,87420.0,87410.0,0.57233295]